Cogmind - Beta 12 @@@ ROGUE MODE // 2023.07.13 @ 08:42:54 Player: Benny Result: Destroyed self via exploding Nuclear Reactor Performance ------------- Evolutions (1) 500 Regions Visited (2) 400 Robots Destroyed (38) 190 Value Destroyed (999) 999 Prototype IDs (2) 40 Alien Tech Used (0) 0 Bonus (75) 75 TOTAL SCORE: 2204 Bonus ------- High Alert Combat Kills 75 Cogmind --------- Core Integrity 0/400 Matter 289/300 Energy 180/250 System Corruption 0% Temperature Cool (67) Movement Walking (120) Location -9/Materials Parts ------- > --- POWER (1) -------- Ion Engine > --- PROPULSION (4) --- Aluminum Leg Aluminum Leg > --- UTILITY (2) ------ Small Storage Unit Targeting Computer > --- WEAPON (2) ------- Particle Gun EMP Blaster > --- INVENTORY (8) ---- Ion Engine Aluminum Leg Aluminum Leg Aluminum Leg Advanced Visual Processing Unit Mini Grenade Launcher Datajack Peak State ------------ > --- POWER ------------ Light Nuclear Core > --- PROPULSION ------- Carbon-fiber Leg Carbon-fiber Leg Carbon-fiber Leg Carbon-fiber Leg > --- UTILITY ---------- Small Storage Unit Targeting Computer > --- WEAPON ----------- Light Assault Rifle Shotgun > --- INVENTORY -------- Light Ion Engine Aluminum Leg Aluminum Leg Aluminum Leg Aluminum Leg Advanced Visual Processing Unit Mini Grenade Launcher Datajack [Rating: 21] Favorites ----------- Power Ion Engine Engine Ion Engine Power Core Light Nuclear Core Propulsion Carbon-fiber Leg Leg Carbon-fiber Leg Wheel Compact Wheel Utility Small Storage Unit Device Seismic Detector Storage Small Storage Unit Processor Targeting Computer Weapon Light Assault Rifle Energy Gun Particle Gun Ballistic Gun Light Assault Rifle Launcher Mini Grenade Launcher Special Melee Weapon Datajack Build | -11 -10 -9 ------- Run | Jun Mat Mat Slots Evolved 2 | . . 2 Power . | . . . Propulsion 2 | . . 2 Utility . | . . . Weapon . | . . . Parts Attached 38 | 7 5 26 Power 7 | 1 . 6 Engine 5 | 1 . 4 Core 2 | . . 2 Reactor . | . . . Propulsion 13 | 2 . 11 Treads . | . . . Leg 11 | . . 11 Wheel 2 | 2 . . Hover . | . . . Flight . | . . . Utility 5 | 2 3 . Device 1 | 1 . . Storage 2 | 1 1 . Processor 2 | . 2 . Hackware . | . . . Protection . | . . . Artifact . | . . . Weapon 13 | 2 2 9 Energy Gun 2 | . 1 1 Energy Cannon . | . . . Ballistic Gun 6 | 2 . 4 Ballistic Cannon . | . . . Launcher 4 | . 1 3 Special Weapon . | . . . Impact Weapon . | . . . Slashing Weapon . | . . . Piercing Weapon . | . . . Special Melee Weapon 1 | . . 1 Unidentified Prototypes . | . . . Parts Lost 9 | . 1 8 Power 1 | . . 1 Propulsion 5 | . . 5 Utility . | . . . Weapon 3 | . 1 2 Highest Loss Streak 3 | . 1 3 To Critical Strikes . | . . . Average Slot Usage (%) 98 | . 99 98 Engine 9 | . 14 7 Core 2 | . . 3 Leg 29 | . . 43 Wheel 8 | . 28 . Device 2 | . 6 . Storage 11 | . 13 11 Processor 10 | . 7 11 Energy Gun 4 | . 6 4 Ballistic Gun 17 | . 19 16 Naked Turns . | . . . Heaviest Build 16 | 14 15 16 Greatest Support 60 | 32 32 60 Greatest Overweight (x) . | . . . Average Overweight (x) . | . . . Largest Inventory Capacity 8 | 8 8 8 Average Capacity 7 | 7 7 8 Most Carried 8 | 5 8 8 Average Carried 7 | 3 7 7 Final Capacity 8 | 8 8 8 Final Carried 8 | 5 8 7 Class Distribution -------------------- 100% | Mutant Dominant Class ---------------- Mutant | -10/Materials Mutant | -9/Materials Resources | -11 -10 -9 ----------- Run | Jun Mat Mat Matter Collected 997 | 259 106 632 Remotely . | . . . Salvage Created 1077 | 15 126 936 Parts 83 | 3 13 67 Haulers Intercepted 1 | . . 1 Recyclers Shooed 1 | . . 1 Parts Field Recycled . | . . . Retrieved Matter . | . . . Parts Self-Destructed . | . . . Prevented . | . . . Kills | -11 -10 -9 ------- Run | Jun Mat Mat Combat Hostiles Destroyed 26 | . 3 23 Guns 20 | . 3 17 AOE 6 | . . 6 Classes Destroyed 9 | 1 4 4 Worker 3 | . . 3 Builder 3 | . 1 2 Tunneler 1 | 1 . . Hauler 1 | . . 1 Recycler 1 | . . 1 Watcher 3 | . 1 2 Swarmer 5 | . 2 3 Grunt 16 | . 1 15 Sentry 5 | . . 5 Best Kill Streak 4 | 1 2 4 Combat Bots Only 4 | . 2 4 Max Kills in Single Turn 2 | 1 1 2 Gunslinging . | . . . Exploded 2 | . . 2 Melee . | . . . Uniques/NPCs Destroyed . | . . . Combat | -11 -10 -9 -------- Run | Jun Mat Mat Damage Taken 1661 | . 207 1454 Core 457 | . 48 409 Absorbed by Shields . | . . . Core Remaining (%) 90 | 100 80 . Volleys Fired 101 | 3 21 77 Largest 2 | 2 2 2 Hottest 98 | 40 60 98 Shots Fired 187 | 6 34 147 Gun 164 | 6 29 129 Cannon . | . . . Launcher 23 | . 5 18 Special . | . . . Kinetic 138 | 6 15 117 Thermal 12 | . . 12 Explosive 22 | . 5 17 Electromagnetic 15 | . 14 1 Robot Hit Streak 13 | 2 7 13 Robot Miss Streak 4 | 1 3 4 Penetration Max . | . . . Secondary Targets . | . . . Shots Hit Robots 120 | 4 17 99 Core Hits 78 | 1 10 67 Critical Kills . | . . . Critical Parts Destroyed . | . . . Critical Strikes 1 | . . 1 Burn 1 | . . 1 Melee Attacks . | . . . Impact . | . . . Slashing . | . . . Piercing . | . . . Sneak Attacks . | . . . Combat Hostiles . | . . . Follow-up Attacks . | . . . Damage Inflicted 2239 | 41 188 2010 Guns 1331 | 41 188 1102 Cannons . | . . . Explosions 905 | . . 905 Melee . | . . . Ramming 3 | . . 3 Kinetic 1123 | 41 70 1012 Thermal 252 | . . 252 Explosive 722 | . . 722 Electromagnetic 139 | . 118 21 Impact . | . . . Slashing . | . . . Piercing . | . . . Highest Corruption . | . . . Average Corruption . | . . . Corruption Purged . | . . . Corruption Blocked . | . . . Overload Shots . | . . . Overflow Damage 138 | . . 138 Projectiles . | . . . Explosions 138 | . . 138 Melee . | . . . Knockbacks . | . . . Impact . | . . . Kinetic . | . . . Secondary . | . . . Self-Inflicted Damage 218 | . . 218 Shots 4 | . . 4 Rammed . | . . . Targets Rammed 1 | . . 1 Kicked 1 | . . 1 Crushed . | . . . Highest Temperature 90 | . 67 90 Average Temperature 17 | . 23 15 Received Heat Transfer 621 | . 66 555 Siege Activations . | . . . Robots Corrupted . | . . . Combat Hostiles . | . . . Parts Fried 1 | . 1 . Impact Corruptions . | . . . Robots Melted . | . . . Combat Hostiles . | . . . Parts Melted . | . . . Heat Transferred 446 | . . 446 Parts Sabotaged . | . . . Parts Stolen . | . . . Parts Stripped . | . . . Power Chain Reactions . | . . . Missiles Intercepted . | . . . Alert | -11 -10 -9 ------- Run | Jun Mat Mat Peak Influence 612 | 5 127 612 Initial 53 | . 3 53 Average 214 | 3 44 315 Maximum Alert Level 2 | . . 2 Low Security (%) 62 | 100 100 40 Level 1 8 | . . 12 Level 2 29 | . . 46 Level 3 . | . . . Level 4 . | . . . Level 5 . | . . . High Security . | . . . Max Security . | . . . Squads Dispatched 4 | . . 4 Investigation 1 | . . 1 Extermination . | . . . Reinforcement 3 | . . 3 Assault . | . . . Garrison . | . . . Intercept . | . . . Searches Triggered . | . . . Construction Impeded 1 | . . 1 Haulers Reinforced . | . . . Active Scanning Responses . | . . . Cargo Convoy Interrupts . | . . . Stealth | -11 -10 -9 --------- Run | Jun Mat Mat Distress Signals 3 | . . 3 Communications Jammed . | . . . Distress Signals . | . . . Times Spotted 55 | . 15 40 Peak Tracking Total 7 | . 6 7 Tactical Retreats 6 | . 2 4 Traps | -11 -10 -9 ------- Run | Jun Mat Mat Traps Triggered 1 | . . 1 Indirectly . | . . . Trap Hack Attempts . | . . . Triggered . | . . . Disarmed . | . . . Reprogrammed . | . . . Reused . | . . . Traps Extracted . | . . . Installed . | . . . Triggered . | . . . Machines | -11 -10 -9 ---------- Run | Jun Mat Mat Machines Disabled 6 | . . 6 Max in Single Turn 2 | . . 2 Machines Repaired . | . . . Machines Sabotaged . | . . . Overloaded Fab Kills . | . . . Hacking | -11 -10 -9 --------- Run | Jun Mat Mat Machines Accessed 10 | . 5 5 Terminals 6 | . 4 2 Fabricators . | . . . Repair Stations . | . . . Recycling Units 3 | . 1 2 Scanalyzers 1 | . . 1 Garrison Access . | . . . Total Hacks 27 | . 12 15 Successful 14 | . 6 8 Failed 13 | . 6 7 Catastrophic 2 | . 2 . Database Lockouts . | . . . Manual 2 | . . 2 Terminals 15 | . 9 6 Fabricators . | . . . Repair Stations . | . . . Recycling Units 9 | . 3 6 Scanalyzers 3 | . . 3 Garrison Access . | . . . Terminal Hacks 9 | . 5 4 Record 3 | . . 3 Robot Analysis 1 | . 1 . Prototype ID Bank 1 | . 1 . Locate Traps 2 | . 1 1 Surveillance Status 1 | . 1 . Registered Components 1 | . 1 . Fabricator Hacks . | . . . Repair Station Hacks . | . . . Recycling Unit Hacks 4 | . 1 3 Process 1 | . . 1 Retrieve Matter 2 | . . 2 Retrieve Components 1 | . 1 . Scanalyzer 1 | . . 1 Insert Component 1 | . . 1 Garrison Access Hacks . | . . . Unauthorized Hacks . | . . . Terminals . | . . . Fabricators . | . . . Repair Stations . | . . . Recycling Units . | . . . Scanalyzers . | . . . Garrison Access . | . . . Data Cores Recovered . | . . . Used . | . . . Hacking Detections 10 | . 5 5 Full Trace Events . | . . . Feedback Events . | . . . Feedback Blocked . | . . . Robot Schematics Acquired . | . . . Robots Built . | . . . Authchips . | . . . Time . | . . . Total Robot Build Rating . | . . . Part Schematics Acquired . | . . . Parts Built . | . . . Authchips . | . . . Time . | . . . Total Part Build Rating . | . . . Parts Repaired . | . . . Time . | . . . Parts Recycled . | . . . Recycled Matter 81 | . . 81 Retrieved Matter 81 | . . 81 Retrieved Components 2 | . 2 . Parts Scanalyzed 1 | . . 1 Part Schematics Acquired . | . . . Parts Damaged . | . . . Bothacking | -11 -10 -9 ------------ Run | Jun Mat Mat Used RIF Installer . | . . . Robots Hacked . | . . . Non-combat . | . . . Combat . | . . . Robot Hacks Applied . | . . . Relay Couplers Released . | . . . Fabnet Peak Effective % . | . . . Robots Rewired . | . . . Allies Hacked . | . . . Hacks Repelled . | . . . Allies | -11 -10 -9 -------- Run | Jun Mat Mat Total Allies . | . . . Largest Group . | . . . Highest-Rated Group . | . . . Highest-Rated Ally . | . . . Total Orders . | . . . Ally Attacks . | . . . Total Damage . | . . . Kills . | . . . Allies Corrupted . | . . . Allies Melted . | . . . Intel | -11 -10 -9 ------- Run | Jun Mat Mat Robot Analysis Total 1 | . 1 . Derelict Logs Recovered . | . . . Drone Launches . | . . . Drone Recoveries . | . . . Exploration | -11 -10 -9 ------------- Run | Jun Mat Mat Turns Passed 1732 | 112 516 1104 Spaces Moved 1081 | 65 389 627 Core 2 | 2 . . Treads . | . . . Legs 627 | . . 627 Wheels 452 | 63 389 . Hover . | . . . Flight . | . . . Fastest Speed 50 | 50 100 120 Average Speed 111 | 98 100 120 Slowest Speed 120 | 100 100 120 Overloaded Moves . | . . . Propulsion Burnouts . | . . . Robots Hopped . | . . . Cave-ins Triggered . | . . . Exploration Rate (%) 36 | 4 46 59 Regions Visited 2 Branch Regions . Pre-discovered Areas . | . . . Known Exits Taken . | . . . Unknown Exits Taken 2 | 1 1 . Scrap Searched . | . . . Spaces Dug . | . . . Terrain Destroyed 116 | . 20 96 Melee . | . . . Projectile . | . . . AOE 116 | . 20 96 Terrain Rammed . | . . . Walls Destroyed . | . . . Machines Disabled . | . . . Actions | -11 -10 -9 --------- Run | Jun Mat Mat Total 1435 | 104 485 846 Wait 171 | 25 57 89 Move 1079 | 64 388 627 Hop . | . . . Pick Up 26 | 5 8 13 Fast Attach 13 | 7 4 2 Attach 8 | . . 8 Detach 1 | . 1 . Swap 17 | . 1 16 Drop 18 | . 5 13 Fire 101 | 3 21 77 Melee . | . . . Ram . | . . . Kick 1 | . . 1 Crush . | . . . Escape Stasis . | . . . Rewire . | . . . Trap . | . . . Miscellaneous . | . . . Route ------- -11/Junkyard -10/Materials (discovered 2 exits: *Mat / [*Min]) -9/Materials History --------- Turn | Location | Event 31 | -11/Junkyard | Discovered new exit (range 15) 113 | -11/Junkyard | Entered Materials 245 | -10/Materials | Discovered new exit (range 16) 304 | -10/Materials | Build established: Mutant 447 | -10/Materials | Discovered new exit (range 8) 629 | -10/Materials | Entered another Materials area 629 | -9/Materials | Evolved 2 slots: Propulsion x2 1230 | -9/Materials | Core integrity fell below 50% 1257 | -9/Materials | Lost 3 parts (1p2n) 1733 | -9/Materials | Destroyed self via exploding Nuclear Reactor Last Messages --------------- 01663_ K-01 Serf collects debris. 01664_ Dropped Lgt. Ion Engine. 01665_ K-01 Serf collects debris. 01666_ Acquired 18 matter. 01669_ K-01 Serf collects debris. 01677_ K-01 Serf cleans the Fusion Modulator. 01679_ K-01 Serf collects debris. 01697_ O-16 Technician: "IFF HANDSHAKE FAILED. SECURING TERMINAL." 01701_ ALERT: Hostiles spotted, dispatching reinforcements to Terminal M004. 01711_ O-16 Technician suffers critical hit (Burn). 01727_ Shotgun destroyed. 01729_ Carbon-fiber Leg destroyed. 01733_ G-34 Mercenary destroyed. 01733_ Terminal disabled. 01733_ Nuclear Reactor explodes. 01733_ Door malfunctions. 01733_ G-34 Mercenary destroyed. 01733_ Aluminum Leg destroyed. 01733_ Destroyed Aluminum Leg. Map ----- +----------------------------------------------------+ | "T ?????????????????????????????????????????? | | """ ???????????????????????????????????????? | | ??????????????????????????????????????? | | ??????????????????????????????????????? | | ?????????????????????????????????????? | | !** ?????????????????????????????????????? | | ^!* ?????????????????????????????????????? | | ** ?????????????????????????????????????? | | ?????????????????????????????????????? | | #?????????????????????????????????????? | | """ #?????????????????????????????????????? | | ^ """ ###???????????????????????????????????? | | """ ##??????????????????????????????????? | | ??????????????????????????????????? | | % #???????????????????????????????????? | | """ #???????#######?????????????????????? | | """ #???????# #######???????????????? | | """ #???????# ????????????????? | | % #######?# T ??????????????????? | | == # #?# ????????????????????? | | ^]! # """ #?? ??????????????????????? | | =]! # """ #####/#####???????????????????? | | ]! + """ + %[ #???????????????????? | | # """ # !"" #???????????????????? | | # """ # = #???????????????????? | | ############## # @ " +???????????????????? | | ?????????????####### #???????????????????? | | ???????????????????# #???????????????????? | | ???????????????????# [ #???????????????????? | | ???????????????????# #???????????????????? | | ???????????????????###########???????????????????? | | | | | | | | | | | | | | | | | | | | | | | | | | | | | | | | | | | | | | | +----------------------------------------------------+ Best States ------------- Heat Dissipation 28 Energy Generation 14 Energy Capacity 250 Matter Stores 300 Matter Capacity 300 Sight Range 16 Terrain Scan Density 10 Evasion (%) 55 Targeting Accuracy 10 Item Schematics ----------------- None Robot Schematics ------------------ None Fabricated ------------ Nothing Alien Tech Used ----------------- None Achievements -------------- None Challenges ------------ None Game ------ Seed StealthInsulatedSegregator Manual? 0 Play Time 00:36:10 Cumulative 13.6 hours Start 2023.07.13 @ 08:07:44 End 2023.07.13 @ 08:42:54 Sessions 1 Manual Loads 0 Difficulty Rogue Special Mode None Game No. 6 Rogue 6 Adventurer 0 Explorer 0 Win Type - Total 0 Types 0/0/0/0/0/0/0/0/0 Lore% 6 Gallery% 13 Achievement% 17 Wizard Run 0 Options --------- ASCII 0 Keyboard 1 Movement Numpad Keybinds 0 Fullscreen 1 Font 18/X11 Map View 76x50 Tactical HUD 1 Map Filters NONE Filters NONE Steam 1 RUN: dfb80d50-9d53-4cd6-a976-ecaa4545719d